[Event "3rd Matrix Cup 2024"]
[Site "New Delhi"]
[Date "2024.04.10"]
[Round "9.6"]
[White "Sahil Bheron"]
[Black "Sharma, Harish"]
[Result "1-0"]
[ECO "D02"]
[WhiteElo "1774"]
[BlackElo "1913"]
[Annotator "TA"]
[PlyCount "159"]
[EventDate "2024.04.07"]
[EventType "swiss"]
[EventCountry "IND"]
[SourceTitle "playchess.com"]
[Source "ChessBase"]
[SourceQuality "1"]
[TimeControl "5400+30"]

{[%evp 9,159,24,36,30,32,10,35,23,38,14,44,40,55,45,73,47,86,41,39,39,37,40,67,32,28,25,68,64,71,68,70,70,97,83,83,83,90,89,90,90,111,53,44,35,33,33,32,24,37,45,41,45,30,33,39,21,27,24,152,145,158,149,163,137,208,216,208,210,202,198,317,82,82,82,82,82,97,0,0,0,0,0,0,0,0,0,0,0,0,0,0,0,0,0,0,0,0,0,0,0,0,0,0,0,0,0,0,0,0,0,0,0,707,617,606,591,29958,29959,29963,29960,29962,29964,29964,29965,29982,29983,29983,29960,29980,29981,29981,29981,29984,29985,29985,29986,29989,29983,29989,29985,29986,29987,29987,29988,29988,29988,29988,29989,29989,29990,29990,29990]} 1. d4 {[%emt 0:16:24]} e6 {[%emt 0:00:59]} 2. Nf3 {[%emt 0:00:06]} d5 {[%emt 0:00:08]} 3. e3 {[%emt 0:00:04]} Bd6 {[%emt 0:00:11]} 4. Bd3 {[%emt 0:00:19]} f5 {[%emt 0:00:11]} 5. b3 {[%emt 0:02:50]} Qe7 {[%emt 0:00:14]} 6. Bb2 {[%emt 0:00:41]} Nf6 {[%emt 0:00:11]} 7. Nbd2 {[%emt 0:00:44]} Nbd7 {[%emt 0:00:17]} 8. c4 {[%emt 0:00:54] White is slightly better.} c6 {[%emt 0:00:10]} 9. Qc2 {[%emt 0:00:34]} g6 {[%emt 0:00:57]} 10. Ne5 {[%emt 0:03:17]} O-O {[%emt 0:01:43]} 11. O-O {[%emt 0:04:18]} Ba3 {[%emt 0:13:06]} 12. Ndf3 {[%emt 0:02:48]} a5 {[%emt 0:00:44]} 13. c5 {[%emt 0:02:51]} Bxb2 {[%emt 0:00:13]} 14. Qxb2 {[%emt 0:00:02]} Nxe5 {[%emt 0:05:02]} 15. Nxe5 {[%emt 0:01:46]} (15. dxe5 Nd7 $17) 15... Ng4 {[%emt 0:00:23]} 16. Rac1 {[%emt 0:03:40]} Nxe5 {[%emt 0:00:35]} 17. dxe5 {[%emt 0:00:04]} f4 {[%emt 0:00:40]} 18. exf4 {[%emt 0:06:56]} Rxf4 {[%emt 0:00:11]} 19. g3 {[%emt 0:01:34]} Rf3 {[%emt 0:02:27]} 20. Qe2 {[%emt 0:01:26]} Qf8 {[%emt 0:00:14]} 21. Kg2 {[%emt 0:00:13]} Rf7 {[%emt 0:00:04]} 22. h4 {[%emt 0:03:16]} Qh6 {[%emt 0:00:24]} 23. f4 {[%emt 0:02:49][%cal Oh4h5]} Bd7 {[%emt 0:00:49]} 24. Qg4 {[%emt 0:00:17]} Raf8 {[%emt 0:01:33] [#]} 25. h5 {[%emt 0:05:43] White has more active pieces.} Qxh5 $14 {[%emt 0:00:14]} 26. Qxh5 {[%emt 0:00:00]} gxh5 {[%emt 0:00:02]} 27. Rh1 {[%emt 0:00:02]} Rg7 {[%emt 0:00:08]} 28. Kf2 {[%emt 0:03:24][%mdl 1024] White has compensation.} (28. Rxh5 Rxf4 29. Bxh7+ Kf8 $17) 28... Be8 {[%emt 0:00:22]} 29. Be2 {[%emt 0:03:00]} Rg5 {[%emt 0:04:33]} 30. Bf3 {[%emt 0:00:08]} Rgf5 {[%emt 0:00:22]} 31. Ke3 {[%emt 0:01:49]} Bg6 {[%emt 0:00:12]} 32. Rh4 {[%emt 0:01:15]} Kg7 {[%emt 0:00:43]} 33. Rch1 {[%emt 0:01:06]} b6 {[%emt 0:11:46]} 34. cxb6 $16 {[%emt 0:03:33][%cal Oh1c1]} Rb8 {[%emt 0:00:04]} 35. Kd4 $1 $36 {[%emt 0:02:12][%mdl 2048] White is really pushing.} (35. Bxh5 $6 Rxh5 36. Rxh5 Bxh5 37. Rxh5 Rxb6 $11) 35... Rxb6 {[%emt 0:00:50]} 36. Kc5 $1 {[%emt 0:00:09]} (36. Bxh5 $6 Bxh5 37. Rxh5 Rxh5 38. Rxh5 Rb5 $11) 36... Rb8 {[%emt 0:08:35]} (36... Rb5+ $16 37. Kd6 d4) 37. Bxh5 $18 {[%emt 0:00:39]} (37. Kxc6 Rff8 $11) 37... Bxh5 {[%emt 0:02:02]} 38. Rxh5 {[%emt 0:00:38]} Rxh5 {[%emt 0:00:18]} 39. Rxh5 {[%emt 0:00:07][%mdl 4096] Endgame. KR-KR} Rd8 {[%emt 0:00:03] [#]} (39... Kg6 $142 40. Rh3 (40. Rg5+ Kf7 $11) 40... Rd8) 40. Rh2 $2 {[%emt 0:03:54]} (40. Kxc6 d4 $17) (40. f5 $1 $18 {[%cal Rf5e6] is the precise move to win.} exf5 41. Rxf5 (41. Kxc6 d4 $11)) 40... Kg6 $16 {[%emt 0:00:34] [#]} 41. g4 $1 {[%emt 0:00:48][%cal Oh2h3] Threatens to win with Rh3!} (41. Kxc6 $6 d4 $11) 41... d4 {[%emt 0:00:56]} 42. Rd2 {[%emt 0:02:41]} (42. Kxc6 $6 d3 43. Rd2 h5 44. gxh5+ Kxh5 $11) 42... d3 {[%emt 0:00:04]} 43. Kxc6 {[%emt 0:06:08]} ({Better is} 43. a3 $16) 43... h5 $11 {[%emt 0:01:41]} 44. f5+ {[%emt 0:01:47]} exf5 {[%emt 0:00:26]} 45. gxh5+ {[%emt 0:01:58]} Kf7 {[%emt 0:02:26]} 46. Kc5 {[%emt 0:09:05]} Ke6 {[%emt 0:00:32]} 47. Kc4 {[%emt 0:00:01]} Kxe5 {[%emt 0:00:10] Strongly threatening ...Ke4.} 48. Rxd3 {[%emt 0:00:04]} Rc8+ {[%emt 0:00:12]} 49. Kb5 {[%emt 0:00:54]} Ke4 {[%emt 0:00:14]} 50. Rh3 {[%emt 0:02:49]} f4 {[%emt 0:00:08]} 51. a4 {[%emt 0:02:19]} f3 {[%emt 0:00:07] ...f2 would now be deadly.} 52. Kxa5 {[%emt 0:00:40]} f2 {[%emt 0:01:36]} 53. Rh1 {[%emt 0:00:19]} Rc5+ {[%emt 0:02:37]} 54. Kb6 {[%emt 0:01:05]} Rxh5 {[%emt 0:00:15]} 55. Rf1 {[%emt 0:00:08]} (55. Rxh5 f1=Q (55... f1=R $2 56. a5 $18) 56. b4 Qf8 $19) 55... Rh6+ {[%emt 0:00:32]} 56. Kc5 {[%emt 0:00:27]} Rf6 {[%emt 0:00:18]} 57. b4 {[%emt 0:00:22] And now b5 would win.} Rf5+ {[%emt 0:00:54]} 58. Kc4 {[%emt 0:00:51]} Ke3 {[%emt 0:00:18]} 59. a5 {[%emt 0:00:14] aiming for b5.} Rf4+ {[%emt 0:01:52]} 60. Kc5 {[%emt 0:00:08] Hoping for b5.} Kd3 $2 {[%emt 0:03:03][%mdl 8192] White stays focused until the end.} (60... Ke2 $11 61. Rxf2+ Rxf2) 61. a6 {[%emt 0:01:21] Threatening mate with a7.} Rf5+ {[%emt 0:00:13]} 62. Kc6 {[%emt 0:00:12] Intending a7 and mate.} Kc4 {[%emt 0:00:03]} 63. a7 {[%emt 0:01:01] White mates.} Rf6+ {[%emt 0:03:08]} 64. Kc7 {[%emt 0:00:16]} Rf7+ {[%emt 0:00:19]} 65. Kb6 {[%emt 0:00:01]} Rf6+ {[%emt 0:01:45]} 66. Ka5 {[%emt 0:00:03]} Rf8 {[%emt 0:02:50]} 67. b5 {[%emt 0:00:37][%cal Bb4b5,Bb5b6,Bb6b7][%mdl 32]} (67. Rxf2 Rxf2 68. b5 Kc5 $11) 67... Kc5 {[%emt 0:00:39]} 68. Rc1+ {[%emt 0:00:35]} (68. Rxf2 Rxf2 69. Ka6 Rf8 $11) 68... Kd6 {[%emt 0:00:33]} 69. Kb6 {[%emt 0:00:10]} Kd5 {[%emt 0:00:21]} 70. Rf1 {[%emt 0:01:31]} Rf6+ {[%emt 0:02:35]} 71. Ka5 {[%emt 0:00:11]} Rf8 {[%emt 0:00:26]} 72. b6 {[%emt 0:00:53]} Kc5 {[%emt 0:01:55]} 73. Ka6 {[%emt 0:00:19]} Kc6 {[%emt 0:00:36]} 74. Rc1+ {[%emt 0:00:02]} Kd7 {[%emt 0:00:28]} 75. b7 {[%emt 0:00:17]} Rf6+ {[%emt 0:01:00]} 76. Kb5 {[%emt 0:00:29]} Rf5+ {[%emt 0:00:08]} 77. Kb4 {[%emt 0:00:17]} f1=Q {[%emt 0:00:46]} 78. Rxf1 {[%emt 0:00:06]} (78. b8=R Rf4+ (78... Qxc1 79. Rd8+ Kxd8 80. a8=Q+ Kd7 81. Qa7+ Qc7 82. Qxc7+ Kxc7 83. Kc4 Re5 84. Kd3 Kc6 85. Kd4 Re6 86. Kc3 Rd6 87. Kb4 Rd4+ 88. Kb3 Kb5 89. Kc3 Rd6 90. Kb3 Rc6 91. Ka3 Kc4 92. Kb2 Kb4 93. Ka1 Rc2 94. Kb1 Kb3 95. Ka1 Rc1#) 79. Ka5 Qxc1 (79... Ra4+ 80. Kxa4 Qa6+ 81. Kb4 $11) (79... Ra4+ 80. Kxa4 Qa6+ 81. Kb3 $11)) 78... Rxf1 {[%emt 0:00:04]} 79. a8=Q {[%emt 0:00:21]} ({Worse is} 79. b8=B Ra1 $11) 79... Rb1+ {[%emt 0:00:49]} 80. Kc3 {[%emt 0:00:02] Weighted Error Value: White=0.15 (very precise) /Black=0.16 (very precise) .  Loses game:     	---       	Black=1      Missed win:     	White=1     	---        Mistake:       	White=2     	Black=3      Inaccurate:     	White=3     	Black=6      OK:         	White=21    	Black=20     Best:        	White=4     	Black=4      Strong:       	White=2     	---} 1-0

[Event "3rd Matrix Cup 2024"]
[Site "New Delhi"]
[Date "2024.04.10"]
[Round "9.7"]
[White "Mehul Sondhi"]
[Black "Om Batra"]
[Result "0-1"]
[ECO "B72"]
[WhiteElo "1833"]
[BlackElo "1804"]
[Annotator "NA RC COMBH"]
[PlyCount "150"]
[EventDate "2024.04.07"]
[EventType "swiss"]
[EventCountry "IND"]
[SourceTitle "playchess.com"]
[Source "ChessBase"]
[SourceQuality "1"]
[TimeControl "5400+30"]

1. e4 {[%emt 0:00:30]} c5 {[%emt 0:00:30]} 2. Nf3 {[%emt 0:00:30]} d6 {[%emt 0:00:30]} 3. d4 {[%emt 0:00:30]} cxd4 {[%emt 0:00:30]} 4. Nxd4 {[%emt 0:00:30]} Nf6 {[%emt 0:00:30]} 5. Nc3 {[%emt 0:00:30]} a6 {[%emt 0:00:30]} 6. Be2 {[%emt 0:00:30]} g6 {[%emt 0:00:30]} 7. O-O {[%emt 0:00:30]} Bg7 {[%emt 0:00:30]} 8. Be3 {[%emt 0:00:30]} O-O {[%emt 0:00:30]} 9. Nb3 {[%emt 0:00:30]} Qc7 {[%emt 0:00:30]} 10. f4 {[%emt 0:00:30]} b5 {[%emt 0:00:30]} 11. Bf3 {[%emt 0:00:30]} Bb7 {[%emt 0:00:30]} 12. a3 {[%emt 0:00:30]} Nbd7 {[%emt 0:00:30]} 13. g4 {[%emt 0:00:30]} Nb6 {[%emt 0:00:30]} 14. Na5 {[%emt 0:00:30]} Nc4 {[%emt 0:00:30]} 15. Nxc4 {[%emt 0:00:30]} Qxc4 {[%emt 0:00:30]} 16. Qd3 {[%emt 0:00:30]} Qxd3 {[%emt 0:00:30]} 17. cxd3 {[%emt 0:00:30]} Nd7 {[%emt 0:00:30]} 18. Rac1 {[%emt 0:00:30]} Rfc8 {[%emt 0:00:30]} 19. Kf2 {[%emt 0:00:30]} Nc5 {[%emt 0:00:30]} 20. Bxc5 {[%emt 0:00:30]} Rxc5 {[%emt 0:00:30]} 21. Ke3 {[%emt 0:00:30]} e5 {[%emt 0:00:30]} 22. h4 {[%emt 0:00:30]} exf4+ {[%emt 0:00:30]} 23. Kxf4 {[%emt 0:00:30]} Rac8 {[%emt 0:00:30]} 24. Ke3 {[%emt 0:00:30]} Bxc3 {[%emt 0:00:30]} 25. bxc3 {[%emt 0:00:30]} Rxc3 {[%emt 0:00:30]} 26. Ra1 {[%emt 0:00:30]} Rb3 {[%emt 0:00:30]} 27. Rfc1 {[%emt 0:00:30]} Rcc3 {[%emt 0:00:30]} 28. Rxc3 {[%emt 0:00:30]} Rxc3 {[%emt 0:00:30]} 29. Kd2 {[%emt 0:00:30]} Rc7 {[%emt 0:00:30]} 30. Rb1 {[%emt 0:00:30]} Bc8 {[%emt 0:00:30]} 31. Rb4 {[%emt 0:00:30]} Kf8 {[%emt 1:31:00]} 32. g5 {[%emt 0:57:53]} Bd7 {[%emt 0:00:00]} 33. Be2 {[%emt 0:00:47]} Ke7 {[%emt 0:00:00]} 34. d4 {[%emt 0:01:04]} f6 {[%emt 0:00:00]} 35. Rb1 {[%emt 0:00:59]} f5 {[%emt 0:00:00]} 36. Bd3 {[%emt 0:03:01]} fxe4 {[%emt 0:00:00]} 37. Bxe4 {[%emt 0:00:14]} Rc4 {[%emt 0:00:00]} 38. Rb4 {[%emt 0:00:20]} Rc8 {[%emt 0:00:00]} 39. Rb1 {[%emt 0:06:55]} Rf8 {[%emt 0:00:00]} 40. Rh1 {[%emt 0:04:30]} Rf4 {[%emt 0:00:00]} 41. Ke3 {[%emt 0:00:33]} Rg4 {[%emt 0:00:00]} 42. Kf3 {[%emt 0:02:03]} d5 {[%emt 0:00:00]} 43. Bxd5 {[%emt 0:00:18]} Rxd4 {[%emt 0:00:00]} 44. Re1+ {[%emt 0:02:12]} Kd6 {[%emt 0:00:00]} 45. Be4 {[%emt 0:00:30]} Ra4 {[%emt 0:00:00]} 46. Re3 {[%emt 0:00:42]} Bc6 {[%emt 0:00:00]} 47. Bxc6 {[%emt 0:00:35]} Kxc6 {[%emt 0:00:00]} 48. h5 {[%emt 0:01:06]} gxh5 {[%emt 0:00:00]} 49. Re6+ {[%emt 0:00:05]} Kd5 {[%emt 0:00:00]} 50. Rh6 {[%emt 0:00:15]} Ke5 {[%emt 0:00:00]} 51. Rxh5 {[%emt 0:00:12]} Kf5 {[%emt 0:00:00]} 52. Ke3 {[%emt 0:00:49]} Rxa3+ {[%emt 0:00:00]} 53. Kd4 {[%emt 0:00:08]} Kg6 {[%emt 0:00:00]} 54. Rh6+ {[%emt 0:00:21]} Kxg5 {[%emt 0:00:00]} 55. Rxh7 {[%emt 0:00:10]} a5 {[%emt 0:00:00]} 56. Rf7 {[%emt 0:00:21]} a4 {[%emt 0:00:00]} 57. Rf2 {[%emt 0:00:58]} Rb3 {[%emt 0:00:00]} 58. Rg2+ {[%emt 0:00:35]} Kf4 {[%emt 0:00:00]} 59. Rf2+ {[%emt 0:00:08]} Kg3 {[%emt 0:00:00]} 60. Rf8 {[%emt 0:00:21]} a3 {[%emt 0:00:00]} 61. Rg8+ {[%emt 0:01:21]} Kf2 {[%emt 0:00:00]} 62. Rf8+ {[%emt 0:00:07]} Ke1 {[%emt 0:00:00]} 63. Re8+ {[%emt 0:00:09]} Kd1 {[%emt 0:00:00]} 64. Ra8 {[%emt 0:00:56]} Kc2 {[%emt 0:00:00]} 65. Rc8+ {[%emt 0:00:36]} Kb2 {[%emt 0:00:00]} 66. Rh8 {[%emt 0:00:16]} a2 {[%emt 0:00:00]} 67. Rh2+ {[%emt 0:00:15]} Ka3 {[%emt 0:00:00]} 68. Rh1 {[%emt 0:00:18]} Rb1 {[%emt 0:00:00]} 69. Rh3+ {[%emt 0:00:12]} Kb4 {[%emt 0:00:00]} 70. Rh4 {[%emt 0:00:12]} a1=Q+ {[%emt 0:19:30]} 71. Kd5+ {[%emt 0:00:06]} Ka5 {[%emt 0:00:00]} 72. Rh7 {[%emt 0:00:09]} Rd1+ {[%emt 0:00:00]} 73. Kc6 {[%emt 0:00:09]} Qf6+ {[%emt 0:00:00]} 74. Kb7 {[%emt 0:00:15]} Qb6+ {[%emt 0:00:00]} 75. Kc8 {[%emt 0:00:04]} Rd8# {[%emt 0:00:00]} 0-1

[Event "3rd Matrix Cup 2024"]
[Site "New Delhi"]
[Date "2024.04.10"]
[Round "9.8"]
[White "Ishvi Aggarwal"]
[Black "Lakshmi Charan Naidu G"]
[Result "1/2-1/2"]
[ECO "E00"]
[WhiteElo "1959"]
[BlackElo "1753"]
[Annotator "TA"]
[PlyCount "88"]
[EventDate "2024.04.07"]
[EventType "swiss"]
[EventCountry "IND"]
[SourceTitle "playchess.com"]
[Source "ChessBase"]
[SourceQuality "1"]
[TimeControl "5400+30"]

{[%evp 10,88,41,20,29,26,45,-16,22,12,44,45,45,9,17,6,31,28,9,8,40,38,65,45,50,52,54,44,154,155,264,251,251,234,221,143,167,158,125,124,223,187,193,191,488,91,132,-333,4,4,75,26,26,44,105,33,31,28,28,33,151,35,35,35,35,35,35,20,20,19,19,2,6,17,25,32,32,32,32,16,16]} 1. d4 {[%emt 0:00:03]} Nf6 {[%emt 0:01:00]} 2. c4 {[%emt 0:00:07]} e6 {[%emt 0:00:06]} 3. g3 {[%emt 0:00:04]} Bb4+ {[%emt 0:00:18]} 4. Bd2 {[%emt 0:00:05]} Qe7 {[%emt 0:00:04]} 5. Bg2 {[%emt 0:00:06]} Nc6 {[%emt 0:00:11]} 6. a3 {[%emt 0:01:31]} Bxd2+ {[%emt 0:00:13]} 7. Qxd2 {[%emt 0:00:06]} a5 {[%emt 0:02:12]} 8. e4 {[%emt 0:03:06]} (8. e3 $14) 8... d6 {[%emt 0:02:20]} 9. Ne2 {[%emt 0:02:08]} e5 {[%emt 0:01:37]} 10. d5 {[%emt 0:01:55]} Nb8 {[%emt 0:00:09]} 11. b3 {[%emt 0:01:09][%cal Bb2b3,Bb3b4][%mdl 32]} Nbd7 {[%emt 0:01:39]} 12. Nbc3 {[%emt 0:00:32]} O-O {[%emt 0:03:53]} 13. O-O {[%emt 0:00:19]} Nc5 {[%emt 0:00:56]} 14. Qc2 {[%emt 0:01:48]} Ne8 {[%emt 0:06:39]} 15. b4 {[%emt 0:10:51]} Na6 {[%emt 0:00:11]} 16. Qb2 {[%emt 0:02:29]} (16. bxa5 $6 Nc5 $11) 16... f5 {[%emt 0:00:22]} 17. f4 {[%emt 0:01:52]} (17. bxa5 f4 18. gxf4 exf4 $15) 17... Nf6 {[%emt 0:06:37]} 18. Rae1 {[%emt 0:12:18][%cal Ba1e1,Be1e4,Be4d4][%mdl 32]} (18. bxa5 Nc5 19. exf5 Bxf5 $17 (19... Rxa5 20. Nb5 $11)) (18. exf5 {is more complex.} Ng4 19. Qd2 exf4 20. Rxf4 Bxf5 21. Ne4) 18... exf4 {[%emt 0:16:00]} ({Black should play} 18... Ng4 $14) 19. Nxf4 $16 {[%emt 0:01:27]} fxe4 {[%emt 0:01:24]} (19... Nd7 $16 20. exf5 (20. bxa5 Ne5 $14) 20... Ne5) 20. Nxe4 $18 {[%emt 0:00:37]} Nxe4 {[%emt 0:00:42]} 21. Rxe4 {[%emt 0:02:56]} (21. Bxe4 $6 Qg5 22. c5 (22. bxa5 Nc5 $14) 22... axb4 $18) 21... Qg5 {[%emt 0:01:36]} 22. Rfe1 {[%emt 0:09:10]} (22. bxa5 $6 Bf5 $16 (22... Nc5 23. h4 $16)) 22... Bd7 {[%emt 0:04:33]} 23. Ne6 {[%emt 0:09:49]} (23. bxa5 $6 Nc5 $16) 23... Bxe6 {[%emt 0:00:39]} 24. dxe6 {[%emt 0:00:07]} Rae8 {[%emt 0:00:13]} (24... Qe7 $16 {keeps fighting.} 25. R4e3 (25. bxa5 Nc5 $11) 25... Rab8) 25. Rd4 {[%emt 0:09:07]} axb4 {[%emt 0:04:39]} 26. axb4 {[%emt 0:06:15]} (26. Bxb7 bxa3 27. Qxa3 Nc5 $11) 26... Qf6 $2 {[%emt 0:00:28]} (26... Qe7 27. Rh4 (27. Bxb7 Nxb4 28. Rdd1 c5 $14) 27... Qf6) 27. Bxb7 $2 {[%emt 0:04:07]} ({Weaker is} 27. Bd5 Re7 $14) (27. e7 $18 Rxe7 28. Rf1 Qxf1+ (28... Qe6 $2 29. Bd5 $18) 29. Bxf1) 27... Nxb4 {[%emt 0:45:19]} 28. Bd5 $2 {[%emt 0:01:54][%mdl 8192] [#]} (28. Qd2 $1 $16 {is forced if you want to stay better. Strongly threatening Rf4.} g5 (28... Rxe6 $2 29. Rf4 $18) 29. Rde4) 28... Nxd5 {[%emt 0:00:00]} (28... Nd3 $1 $19 29. e7+ (29. Rxd3 $2 {loses.} Qxb2 30. e7+ Rf7 $19) 29... Rf7 30. Bxf7+ Kxf7 31. Rxd3 Qxb2 32. Rf3+ Kg6 33. Re6+ Kg5) 29. cxd5 $11 {[%emt 0:00:03]} Qf3 {[%emt 0:00:00]} (29... c6 $11 {remains equal.}) 30. Qe2 {[%emt 0:04:40] Active counter play!} (30. Qd2 $16) 30... Qxe2 {[%emt 0:00:00]} 31. Rxe2 {[%emt 0:00:01][%mdl 4096] Endgame. KRR-KRR} h5 {[%emt 0:00:00]} (31... Rc8 $14) 32. Rc2 {[%emt 0:02:19]} (32. Rf4 $16) 32... c5 $1 $14 {[%emt 0:00:00]} 33. Ra4 {[%emt 0:02:02] Hoping for Ra6.} Rf5 {[%emt 0:00:00]} 34. Rd2 {[%emt 0:00:11]} Kf8 {[%emt 0:00:00] [#]} (34... Re5 $14) 35. Rf2 {[%emt 0:02:48]} (35. Ra6 $1 $16 {[%cal Ra6d6]}) 35... Rxf2 {[%emt 0:00:00]} 36. Kxf2 {[%emt 0:00:01] And now Ra7 would win. KR-KR} Ke7 {[%emt 0:00:00]} 37. Rf4 {[%emt 0:10:21]} Rf8 {[%emt 0:02:29] Repels Rf7+} 38. Ke3 {[%emt 0:00:16]} Rxf4 {[%emt 0:00:07]} 39. gxf4 $11 {[%emt 0:00:26] KP-KP} g6 {[%emt 0:00:05]} 40. h4 {[%emt 0:00:41]} Kf6 {[%emt 0:00:12]} 41. Ke4 {[%emt 0:00:17]} Ke7 {[%emt 0:00:03]} 42. Kd3 {[%emt 0:00:38]} Kf6 {[%emt 0:00:22]} 43. Kc4 {[%emt 0:00:14]} Ke7 {[%emt 0:00:04]} 44. Kb5 {[%emt 0:00:04]} Ke8 {[%emt 0:00:03] Black escapes into a draw.   Weighted Error Value: White=0.54/Black=0.45.  Loses game:     	White=1     	---        Missed win:     	White=1     	Black=1      Mistake:       	White=4     	Black=7      Inaccurate:     	White=2     	Black=5      OK:         	White=8     	Black=13     Best:        	White=1     	Black=2      Strong:       	---       	Black=1} 1/2-1/2